fUST/lending_fUST_20240731
["ID","MTS","AMOUNT","RATE_DAILY","PERIOD"]
[333712169,1722395442387,-10771.74610621,0.000146,2]
[333712171,1722395442397,-151.0,0.000146,2]
[333712173,1722395442406,-500.0,0.00014601,2]
[333712175,1722395442416,-500.0,0.00014601,2]
[333712177,1722395442425,-500.0,0.00014605,2]
[333712179,1722395442434,-500.0,0.00014605,2]
[333712182,1722395442445,-17677.8554781,0.00014605,2]
[333712184,1722395442454,-1436.52302112,0.00014609,2]
[333712654,1722395447075,-796.28247328,0.00014487,2]
[333712657,1722395447085,-794.53556713,0.00014587,2]
[333712659,1722395447095,-794.53556713,0.00014587,2]
[333712661,1722395447104,-794.53556713,0.00014587,2]
[333712663,1722395447113,-794.53556713,0.00014587,2]
[333712665,1722395447123,-794.53556713,0.00014587,2]
[333712667,1722395447132,-794.53556713,0.00014587,2]
[333712669,1722395447141,-794.53556713,0.00014587,2]
[333712671,1722395447151,-794.53556713,0.00014587,2]
[333712673,1722395447161,-794.53556713,0.00014587,2]
[333712675,1722395447171,-794.53556713,0.00014587,2]
[333712677,1722395447182,-794.53556713,0.00014587,2]
[333712679,1722395447192,-794.53556713,0.00014587,2]
[333712681,1722395447201,-168.26572116,0.00014587,2]
[333712908,1722395524490,163.549754,0.00012986,2]
[333712911,1722396039267,151.0,0.00027,120]
[333712912,1722396081887,747.80302532,0.00012986,2]
[333712913,1722396141875,10447.02303403,0.00012986,2]
[333712916,1722396357482,163.549754,0.00012986,2]
[333712987,1722396632273,-620.00325749,0.00014222,2]
[333712988,1722396632283,-36.90553067,0.00014247,2]
[333712989,1722396632295,-592.10145933,0.00014247,2]
[333712990,1722396632304,-164.82791442,0.00014477,2]
[333712991,1722396632313,-164.82791442,0.00014487,2]
[333712992,1722396632323,-164.82791442,0.00014497,2]
[333712993,1722396632332,-16722.1365532,0.00014564,2]
[333712994,1722396632341,-513.21634924,0.00014571,2]
[333712995,1722396632350,-688.22,0.00014572,2]
[333712996,1722396632359,-1651.53,0.00014572,2]
[333712997,1722396632369,-11238.95,0.00014572,2]
[333712998,1722396632379,-500.0,0.00014572,2]
[333712999,1722396632388,-2340.55732413,0.00014572,2]
[333713026,1722396638411,-367.43442542,0.0001457,2]
[333713027,1722396638421,-626.48098217,0.0001457,2]
[333713028,1722396638430,-626.48098217,0.0001457,2]
[333713029,1722396638440,-227.24826208,0.0001457,2]
[333713030,1722396638451,-399.23272009,0.0001457,2]
[333713031,1722396638462,-626.48098217,0.0001457,2]
[333713032,1722396638472,-626.48098217,0.0001457,2]
[333713033,1722396638483,-626.48098217,0.0001457,2]
[333713034,1722396638492,-626.48098217,0.0001457,2]
[333713035,1722396638502,-626.48098217,0.0001457,2]
[333713036,1722396638511,-626.48098217,0.0001457,2]
[333713037,1722396638521,-626.48098217,0.0001457,2]
[333713038,1722396638531,-626.48098217,0.0001457,2]
[333713039,1722396638541,-626.48098217,0.0001457,2]
[333713040,1722396638550,-626.48098217,0.0001457,2]
[333713041,1722396638560,-626.48098217,0.0001457,2]
[333713042,1722396638569,-626.48098217,0.0001457,2]
[333713043,1722396638579,-626.48098217,0.0001457,2]
[333713044,1722396638589,-626.48098217,0.0001457,2]
[333713045,1722396638598,-626.48098217,0.0001457,2]
[333713046,1722396638608,-626.48098217,0.0001457,2]
[333713047,1722396638618,-626.48098217,0.0001457,2]
[333713048,1722396638628,-626.48098217,0.0001457,2]
[333713049,1722396638638,-626.48098217,0.0001457,2]
[333713050,1722396638648,-626.48098217,0.0001457,2]
[333713051,1722396638658,-626.48098217,0.0001457,2]
[333713052,1722396638668,-626.48098217,0.0001457,2]
[333713053,1722396638678,-626.48098217,0.0001457,2]
[333713054,1722396638687,-626.48098217,0.0001457,2]
[333713055,1722396638697,-626.48098217,0.0001457,2]
[333713056,1722396638707,-507.64212273,0.00014571,2]
[333713057,1722396638716,-185.18861223,0.00014571,2]
[333713058,1722396638726,-5488.56267587,0.00014572,2]
[333713059,1722396638736,-500.0,0.00014572,2]
[333713060,1722396638746,-1625.48,0.00014572,2]
[333713061,1722396638756,-1670.16,0.00014572,2]
[333713062,1722396638766,-1577.0,0.00014572,2]
[333713063,1722396638776,-1310.86,0.00014572,2]
[333713064,1722396638785,-366.93425328,0.00014572,2]
[333713065,1722396638797,-1267.88574672,0.00014572,2]
[333713066,1722396638807,-899.56,0.00014572,2]
[333713067,1722396638816,-753.12,0.00014572,2]
[333713068,1722396638826,-1002.58,0.00014572,2]
[333713069,1722396638835,-500.0,0.00014572,2]
[333713070,1722396638845,-1886.16,0.00014572,2]
[333713071,1722396638855,-253.63524393,0.00014573,2]
[333713072,1722396638865,-230.26871726,0.00014573,2]
[333713073,1722396638875,-500.0,0.00014573,2]
[333713074,1722396638884,-500.0,0.00014573,2]
[333713075,1722396638895,-500.0,0.00014573,2]
[333713076,1722396638906,-547.24628153,0.00014573,2]
[333713077,1722396638917,-500.0,0.00014573,2]
[333713078,1722396638928,-377.34732218,0.00014573,2]
[333713079,1722396638938,-500.0,0.00014573,2]
[333713080,1722396638948,-262.932252,0.00014573,2]
[333713081,1722396638958,-500.0,0.00014573,2]
[333713082,1722396638968,-500.0,0.00014573,2]
[333713083,1722396638979,-500.0,0.00014573,2]
[333713084,1722396638990,-33444.2731064,0.00014573,2]
[333713085,1722396639000,-1213.34,0.00014574,2]
[333713086,1722396639011,-500.0,0.00014574,2]
[333713087,1722396639021,-1978.82,0.00014574,2]
[333713088,1722396639031,-500.0,0.00014574,2]
[333713089,1722396639041,-1717.67,0.00014574,2]
[333713090,1722396639051,-3257.92,0.00014574,2]
[333713091,1722396639062,-500.0,0.00014574,2]
[333713092,1722396639071,-1585.57,0.00014574,2]
[333713093,1722396639081,-500.0,0.00014574,2]
[333713094,1722396639091,-500.0,0.00014574,2]
[333713095,1722396639100,-13456.06,0.00014574,2]
[333713096,1722396639110,-794.51,0.00014574,2]
[333713097,1722396639120,-500.0,0.00014574,2]
[333713098,1722396639129,-4586.36,0.00014574,2]
[333713099,1722396639139,-500.0,0.00014574,2]
[333713100,1722396639149,-1335.71,0.00014574,2]
[333713101,1722396639159,-500.0,0.00014574,2]
[333713102,1722396639168,-596.02,0.00014574,2]
[333713103,1722396639179,-886.48,0.00014574,2]
[333713104,1722396639193,-815.76,0.00014574,2]
[333713105,1722396639203,-812.33,0.00014574,2]
[333713106,1722396639214,-1192.93,0.00014574,2]
[333713107,1722396639225,-500.0,0.00014574,2]
[333713108,1722396639237,-500.0,0.00014574,2]
[333713109,1722396639247,-4493.38,0.00014574,2]
[333713110,1722396639258,-500.0,0.00014574,2]
[333713111,1722396639269,-857.57,0.00014574,2]
[333713112,1722396639279,-500.0,0.00014574,2]
[333713113,1722396639290,-538.11,0.00014574,2]
[333713114,1722396639301,-16722.1365532,0.00014575,2]
[333713115,1722396639312,-16722.1365532,0.00014577,2]
[333713116,1722396639321,-5000.0,0.0001458,2]
[333713117,1722396639331,-500.0,0.00014581,2]
[333713118,1722396639340,-500.0,0.00014582,2]
[333713119,1722396639351,-500.0,0.00014582,2]
[333713120,1722396639360,-500.0,0.00014583,2]
[333713121,1722396639370,-500.0,0.00014583,2]
[333713122,1722396639380,-500.0,0.00014583,2]
[333713123,1722396639389,-1206.5,0.00014583,2]
[333713124,1722396639400,-500.0,0.00014583,2]
[333713125,1722396639410,-500.0,0.00014583,2]
[333713126,1722396639420,-500.0,0.00014583,2]
[333713127,1722396639430,-500.0,0.00014583,2]
[333713128,1722396639441,-224.65114976,0.00014583,2]
[333713129,1722396639452,-500.0,0.00014583,2]
[333713130,1722396639462,-500.0,0.00014583,2]
[333713131,1722396639472,-912.04,0.00014583,2]
[333713132,1722396639485,-1145.75,0.00014583,2]
[333713133,1722396639495,-534.99830934,0.00014583,2]
[333713134,1722396639506,-527.01,0.00014583,2]
[333713135,1722396639515,-500.0,0.00014583,2]
[333713136,1722396639525,-500.0,0.00014583,2]
[333713137,1722396639536,-634.0,0.00014583,2]
[333713138,1722396639546,-500.0,0.00014583,2]
[333713139,1722396639557,-773.57,0.00014583,2]
[333713140,1722396639567,-1405.65,0.00014583,2]
[333713141,1722396639577,-500.0,0.00014583,2]
[333713142,1722396639586,-615.37,0.00014583,2]
[333713143,1722396639596,-514.28131382,0.00014583,2]
[333713144,1722396639606,-500.0,0.00014583,2]
[333713145,1722396639615,-500.0,0.00014583,2]
[333713146,1722396639625,-1145.55,0.00014583,2]
[333713147,1722396639636,-500.0,0.00014583,2]
[333713148,1722396639646,-500.0,0.00014583,2]
[333713149,1722396639656,-500.0,0.00014583,2]
[333713150,1722396639666,-1082.32,0.00014583,2]
[333713151,1722396639675,-500.0,0.00014583,2]
[333713152,1722396639685,-1033.29,0.00014583,2]
[333713153,1722396639695,-500.0,0.00014583,2]
[333713155,1722396639705,-587.72538191,0.00014583,2]
[333713157,1722396639715,-500.0,0.00014583,2]
[333713159,1722396639724,-1795.67,0.00014583,2]
[333713160,1722396639734,-622.54,0.00014583,2]
[333713161,1722396639743,-347.7811101,0.00014583,2]
[333713162,1722396639752,-1411.24,0.00014583,2]
[333713163,1722396639762,-1061.8,0.00014583,2]
[333713164,1722396639771,-500.0,0.00014583,2]
[333713165,1722396639780,-500.0,0.00014583,2]
[333713166,1722396639789,-510.90225902,0.00014583,2]
[333713168,1722396639798,-2265.51,0.00014583,2]
[333713169,1722396639808,-500.0,0.00014583,2]
[333713170,1722396639818,-778.07,0.00014583,2]
[333713171,1722396639827,-500.0,0.00014583,2]
[333713172,1722396639836,-500.0,0.00014583,2]
[333713173,1722396639846,-500.0,0.00014583,2]
[333713174,1722396639857,-4043.2,0.00014583,2]
[333713175,1722396639867,-500.0,0.00014583,2]
[333713176,1722396639877,-975.97,0.00014583,2]
[333713177,1722396639886,-985.33,0.00014583,2]
[333713178,1722396639896,-1865.36,0.00014583,2]
[333713180,1722396639905,-500.0,0.00014583,2]
[333713181,1722396639915,-504.49562737,0.00014583,2]
[333713182,1722396639924,-638.79,0.00014583,2]
[333713183,1722396639933,-500.0,0.00014583,2]
[333713184,1722396639942,-500.0,0.00014583,2]
[333713185,1722396639951,-747.75,0.00014583,2]
[333713186,1722396639961,-9380.56,0.00014583,2]
[333713187,1722396639970,-768.29,0.00014583,2]
[333713188,1722396639981,-531.22,0.00014583,2]
[333713189,1722396639991,-500.0,0.00014583,2]
[333713190,1722396640001,-500.0,0.00014583,2]
[333713191,1722396640012,-500.0,0.00014583,2]
[333713192,1722396640021,-500.0,0.00014583,2]
[333713193,1722396640031,-203.39669749,0.00014583,2]
[333713194,1722396640041,-517.92,0.00014583,2]
[333713195,1722396640050,-1372.83,0.00014583,2]
[333713196,1722396640060,-506.65070889,0.00014583,2]
[333713197,1722396640069,-1726.55,0.00014583,2]
[333713198,1722396640079,-500.0,0.00014583,2]
[333713199,1722396640088,-3703.29,0.00014583,2]
[333713200,1722396640098,-503.10294862,0.00014583,2]
[333713201,1722396640107,-500.0,0.00014583,2]
[333713202,1722396640116,-547.25,0.00014583,2]
[333713203,1722396640126,-1663.25,0.00014583,2]
[333713204,1722396640135,-500.0,0.00014583,2]
[333713205,1722396640145,-513.51649892,0.00014583,2]
[333713206,1722396640155,-862.15,0.00014583,2]
[333713207,1722396640164,-500.0,0.00014583,2]
[333713208,1722396640174,-2494.13,0.00014583,2]
[333713209,1722396640187,-500.0,0.00014583,2]
[333713210,1722396640196,-500.0,0.00014583,2]
[333713211,1722396640206,-580.35,0.00014583,2]
[333713212,1722396640215,-500.0,0.00014583,2]
[333713213,1722396640225,-641.67791996,0.00014583,2]
[333713214,1722396640237,-504.00061596,0.00014583,2]
[333713215,1722396640246,-531.22,0.00014584,2]
[333713216,1722396640258,-500.0,0.00014584,2]
[333713217,1722396640270,-500.0,0.00014585,2]
[333713218,1722396640279,-504.05901394,0.00014585,2]
[333713219,1722396640288,-500.0,0.00014585,2]
[333713220,1722396640297,-508.32190725,0.00014585,2]
[333713221,1722396640306,-535.22408806,0.00014585,2]
[333713222,1722396640316,-508.75893975,0.00014585,2]
[333713223,1722396640325,-500.0,0.00014585,2]
[333713224,1722396640334,-500.0,0.00014585,2]
[333713225,1722396640343,-500.0,0.00014585,2]
[333713226,1722396640354,-209.64958809,0.00014585,2]
[333713227,1722396640365,-500.0,0.00014585,2]
[333713228,1722396640376,-500.0,0.00014585,2]
[333713229,1722396640387,-370.6865655,0.00014585,2]
[333713230,1722396640397,-500.0,0.00014585,2]
[333713231,1722396640409,-500.0,0.00014585,2]
[333713232,1722396640420,-785.16,0.00014585,2]
[333713233,1722396640431,-619.57,0.00014585,2]
[333713234,1722396640440,-500.0,0.00014585,2]
[333713235,1722396640449,-500.0,0.00014585,2]
[333713236,1722396640458,-500.0,0.00014585,2]
[333713237,1722396640467,-520.76660711,0.00014585,2]
[333713238,1722396640477,-500.0,0.00014585,2]
[333713239,1722396640488,-308.97168909,0.00014585,2]
[333713240,1722396640498,-1314.77,0.00014585,2]
[333713241,1722396640507,-675.76,0.00014585,2]
[333713242,1722396640517,-500.0,0.00014585,2]
[333713243,1722396640526,-491.66901847,0.00014585,2]
[333713244,1722396640536,-617.83174885,0.00014585,2]
[333713245,1722396640548,-326.03432267,0.00014585,2]
[333713246,1722396640559,-502.4298814,0.00014585,2]
[333713247,1722396640570,-504.00123569,0.00014585,2]
[333713248,1722396640580,-506.44842468,0.00014585,2]
[333713249,1722396640591,-500.0,0.00014585,2]
[333713250,1722396640602,-537.48,0.00014585,2]
[333713251,1722396640611,-500.0,0.00014585,2]
[333713252,1722396640621,-503.64397371,0.00014585,2]
[333713253,1722396640631,-648.26,0.00014585,2]
[333713254,1722396640641,-504.80950484,0.00014585,2]
[333713255,1722396640650,-500.0,0.00014585,2]
[333713256,1722396640659,-500.0,0.00014585,2]
[333713257,1722396640669,-500.0,0.00014585,2]
[333713258,1722396640678,-500.0,0.00014585,2]
[333713259,1722396640687,-996.63,0.00014585,2]
[333713260,1722396640696,-500.0,0.00014585,2]
[333713261,1722396640706,-500.0,0.00014585,2]
[333713262,1722396640715,-500.0,0.00014585,2]
[333713263,1722396640725,-500.0,0.00014585,2]
[333713265,1722396640737,-500.0,0.00014585,2]
[333713266,1722396640746,-500.0,0.00014585,2]
[333713268,1722396640756,-500.0,0.00014585,2]
[333713269,1722396640767,-500.0,0.00014585,2]
[333713271,1722396640776,-500.0,0.00014585,2]
[333713273,1722396640785,-500.0,0.00014585,2]
[333713275,1722396640795,-500.0,0.00014585,2]
[333713277,1722396640804,-500.0,0.00014585,2]
[333713279,1722396640814,-500.0,0.00014585,2]
[333713280,1722396640823,-500.0,0.00014585,2]
[333713281,1722396640833,-500.0,0.00014585,2]
[333713282,1722396640843,-500.0,0.00014585,2]
[333713283,1722396640852,-500.0,0.00014585,2]
[333713284,1722396640862,-500.0,0.00014585,2]
[333713285,1722396640871,-604.92269554,0.00014585,2]
[333713286,1722396640880,-451.97348897,0.00014585,2]
[333713287,1722396640891,-522.17622557,0.00014585,2]
[333713288,1722396640900,-500.0,0.00014585,2]
[333713289,1722396640910,-506.42466303,0.00014585,2]
[333713290,1722396640919,-500.0,0.00014585,2]
[333713291,1722396640929,-500.0,0.00014585,2]
[333713292,1722396640939,-531.22,0.00014585,2]
[333713293,1722396640948,-500.0,0.00014585,2]
[333713294,1722396640957,-500.0,0.00014585,2]
[333713295,1722396640966,-500.0,0.00014585,2]
[333713296,1722396640976,-1253.08,0.00014585,2]
[333713297,1722396640987,-500.0,0.00014585,2]
[333713298,1722396640996,-500.0,0.00014585,2]
[333713299,1722396641005,-500.0,0.00014585,2]
[333713300,1722396641014,-500.0,0.00014585,2]
[333713301,1722396641024,-500.0,0.00014585,2]
[333713302,1722396641034,-531.22,0.00014586,2]
[333713303,1722396641043,-531.22,0.00014586,2]
[333713304,1722396641053,-500.0,0.00014586,2]
[333713305,1722396641062,-500.0,0.00014587,2]
[333713306,1722396641071,-2079.18,0.00014587,2]
[333713307,1722396641081,-500.0,0.00014587,2]
[333713308,1722396641091,-456.48242128,0.00014587,2]
[333713309,1722396641100,-621.06,0.00014587,2]
[333713310,1722396641109,-503.42833162,0.00014587,2]
[333713311,1722396641118,-508.826666,0.00014587,2]
[333713312,1722396641128,-500.0,0.00014587,2]
[333713313,1722396641138,-743.41,0.00014587,2]
[333713314,1722396641147,-776.19,0.00014587,2]
[333713315,1722396641156,-500.0,0.00014587,2]
[333713316,1722396641165,-500.0,0.00014587,2]
[333713317,1722396641175,-507.21485609,0.00014587,2]
[333713318,1722396641187,-1407.06,0.00014587,2]
[333713319,1722396641196,-500.0,0.00014587,2]
[333713320,1722396641207,-1280.83,0.00014587,2]
[333713321,1722396641216,-843.1,0.00014587,2]
[333713322,1722396641226,-500.0,0.00014587,2]
[333713323,1722396641236,-500.0,0.00014587,2]
[333713324,1722396641245,-506.82126499,0.00014587,2]
[333713325,1722396641381,-500.0,0.00014587,2]
[333713326,1722396641420,-500.0,0.00014587,2]
[333713327,1722396641430,-514.71,0.00014587,2]
[333713328,1722396641439,-500.0,0.00014587,2]
[333713329,1722396641449,-500.0,0.00014587,2]
[333713330,1722396641458,-865.29,0.00014587,2]
[333713331,1722396641468,-500.0,0.00014587,2]
[333713332,1722396641480,-1011.25,0.00014587,2]
[333713333,1722396641490,-500.0,0.00014587,2]
[333713334,1722396641499,-3247.06,0.00014587,2]
[333713335,1722396641508,-500.0,0.00014588,2]
[333713336,1722396641518,-151.0,0.00014589,2]
[333713337,1722396641527,-151.0,0.00014589,2]
[333713338,1722396641536,-151.0,0.00014589,2]
[333713339,1722396641546,-151.0,0.00014589,2]
[333713340,1722396641556,-151.0,0.00014589,2]
[333713341,1722396641565,-179.082796,0.00014589,2]
[333713342,1722396641575,-662.90643256,0.0001459,2]
[333713343,1722396641584,-531.22,0.00014598,2]
[333713344,1722396641594,-250.87938558,0.00014599,2]
[333713345,1722396641603,-500.0,0.00014599,2]
[333713346,1722396641613,-1415.49,0.00014599,2]
[333713347,1722396641622,-846.98,0.00014599,2]
[333713348,1722396641632,-500.0,0.00014599,2]
[333713349,1722396641651,-500.0,0.00014599,2]
[333713350,1722396641665,-500.0,0.00014599,2]
[333713351,1722396641675,-508.28510947,0.00014599,2]
[333713352,1722396641685,-605.56719454,0.00014599,2]
[333713353,1722396641695,-500.0,0.00014599,2]
[333713354,1722396641706,-514.33380493,0.00014599,2]
[333713355,1722396641716,-500.0,0.00014599,2]
[333713356,1722396641727,-376.835067,0.00014599,2]
[333713357,1722396641738,-376.835067,0.00014599,2]
[333713358,1722396641748,-151.0,0.00014599,2]
[333713359,1722396641758,-151.0,0.00014599,2]
[333713360,1722396641767,-151.0,0.00014616,2]
[333713361,1722396641777,-151.0,0.00014616,2]
[333713362,1722396641787,-151.0,0.00014616,2]
[333713363,1722396641797,-151.0,0.00014616,2]
[333713364,1722396641806,-229.143841,0.00014616,2]
[333713365,1722396641816,-151.0,0.00014616,2]
[333713366,1722396641826,-151.0,0.00014679,2]
[333713367,1722396641836,-151.0,0.00014679,2]
[333713368,1722396641845,-152.080337,0.00014679,2]
[333713369,1722396641855,-151.0,0.00014679,2]
[333713370,1722396641865,-151.0,0.00014679,2]
[333713371,1722396641874,-158.587151,0.00014679,2]
[333713372,1722396641884,-151.0,0.00014679,2]
[333713373,1722396641893,-151.0,0.00014679,2]
[333713374,1722396641903,-500.0,0.00014679,2]
[333713375,1722396641914,-500.0,0.00014679,2]
[333713376,1722396641923,-33444.2731064,0.0001468,2]
[333713377,1722396641934,-16722.1365532,0.0001468,2]
[333713378,1722396641945,-152.892703,0.00014689,2]
[333713379,1722396641956,-531.22,0.00014689,2]
[333713380,1722396641966,-531.22,0.00014689,2]
[333713381,1722396641976,-531.22,0.00014689,2]
[333713382,1722396641987,-531.22,0.00014689,2]
[333713383,1722396641998,-531.22,0.00014689,2]
[333713384,1722396642007,-500.0,0.00014689,2]
[333713385,1722396642017,-11229.68827326,0.00014689,5]
[333713386,1722396642027,-994.7859049,0.0001469,2]
[333713387,1722396642037,-373.35484598,0.0001469,2]
[333713388,1722396642046,-180.9813121,0.0001469,2]
[333713401,1722396643376,-500.0,0.00014571,2]
[333713402,1722396643386,-2055.59086176,0.0001469,2]
[333713450,1722396672087,228.752395,0.00013699,2]
[333713451,1722396756354,3902.28166534,0.00013699,2]
[333713452,1722396811926,3000.0,0.00013699,2]
[333713459,1722397168777,231.26449931,9.999e-05,2]
[333713465,1722397239265,155.39837816,9.999e-05,2]
[333713466,1722397352560,228.7523959,0.00013699,2]
[333713468,1722397594371,156.09441704,0.0001,2]
[333713470,1722397817606,320.48357497,9.999e-05,2]
[333713517,1722397832355,-151.040945,0.00014127,2]
[333713518,1722397832365,-217.321615,0.00014127,2]
[333713519,1722397832374,-549.75703889,0.00014247,2]
[333713539,1722397838468,-47.79960111,0.00014247,2]
[333713540,1722397838477,-151.040945,0.00014362,2]
[333713541,1722397838490,-776.47105939,0.00014471,2]
[333713542,1722397838500,-3579.5823559,0.00014549,2]
[333713543,1722397838510,-1789.79117795,0.0001455,2]
[333713544,1722397838520,-3579.5823559,0.00014551,2]
[333713545,1722397838530,-500.0,0.00014555,2]
[333713546,1722397838541,-500.0,0.00014555,2]
[333713547,1722397838552,-500.0,0.00014555,2]
[333713548,1722397838563,-500.0,0.00014555,2]
[333713549,1722397838576,-500.0,0.00014555,2]
[333713550,1722397838588,-500.0,0.00014555,2]
[333713551,1722397838598,-500.0,0.00014555,2]
[333713552,1722397838609,-500.0,0.00014555,2]
[333713553,1722397838619,-500.0,0.00014555,2]
[333713554,1722397838631,-500.0,0.00014555,2]
[333713555,1722397838641,-500.0,0.00014555,2]
[333713556,1722397838653,-500.0,0.00014555,2]
[333713557,1722397838663,-500.0,0.00014555,2]
[333713558,1722397838676,-500.0,0.00014555,2]
[333713559,1722397838687,-500.0,0.00014555,2]
[333713560,1722397838699,-500.0,0.00014555,2]
[333713561,1722397838710,-500.0,0.00014555,2]
[333713562,1722397838720,-500.0,0.00014555,2]
[333713563,1722397838729,-500.0,0.00014555,2]
[333713564,1722397838738,-500.0,0.00014555,2]
[333713565,1722397838748,-500.0,0.00014555,2]
[333713566,1722397838757,-500.0,0.00014555,2]
[333713567,1722397838766,-500.0,0.00014555,2]
[333713568,1722397838776,-500.0,0.00014555,2]
[333713569,1722397838785,-500.0,0.00014555,2]
[333713570,1722397838795,-500.0,0.00014555,2]
[333713571,1722397838805,-500.0,0.00014555,2]
[333713572,1722397838815,-500.0,0.00014555,2]
[333713573,1722397838824,-500.0,0.00014555,2]
[333713574,1722397838834,-500.0,0.00014555,2]
[333713575,1722397838844,-500.0,0.00014555,2]
[333713576,1722397838855,-500.0,0.00014555,2]
[333713577,1722397838866,-500.0,0.00014555,2]
[333713578,1722397838877,-500.0,0.00014555,2]
[333713579,1722397838886,-500.0,0.00014555,2]
[333713580,1722397838896,-500.0,0.00014555,2]
[333713581,1722397838906,-500.0,0.00014555,2]
[333713582,1722397838915,-500.0,0.00014555,2]
[333713583,1722397838925,-500.0,0.00014555,2]
[333713584,1722397838937,-500.0,0.00014555,2]
[333713585,1722397838948,-500.0,0.00014555,2]
[333713586,1722397838959,-500.0,0.00014555,2]
[333713587,1722397838970,-500.0,0.00014555,2]
[333713588,1722397838981,-500.0,0.00014555,2]
[333713589,1722397838991,-500.0,0.00014555,2]
[333713590,1722397839000,-500.0,0.00014555,2]
[333713591,1722397839011,-500.0,0.00014555,2]
[333713592,1722397839020,-500.0,0.00014555,2]
[333713593,1722397839030,-395.96764496,0.00014555,2]
[333713594,1722397839041,-500.0,0.00014555,2]
[333713595,1722397839053,-500.0,0.00014555,2]
[333713596,1722397839062,-500.0,0.00014555,2]
[333713597,1722397839072,-1643.0,0.00014556,2]
[333713598,1722397839082,-538.72,0.00014556,2]
[333713599,1722397839092,-8124.24,0.00014556,2]
[333713600,1722397839102,-1736.76,0.00014556,2]
[333713601,1722397839111,-1658.46,0.00014556,2]
[333713602,1722397839121,-533.28,0.00014556,2]
[333713603,1722397839319,-1750.14,0.00014556,2]
[333713604,1722397839332,-500.0,0.00014556,2]
[333713605,1722397839343,-500.0,0.00014556,2]
[333713606,1722397839355,-701.21,0.00014557,2]
[333713607,1722397839364,-11725.93,0.00014557,2]
[333713608,1722397839375,-500.0,0.00014557,2]
[333713609,1722397839386,-1651.49,0.00014557,2]
[333713610,1722397839397,-500.0,0.00014557,2]
[333713611,1722397839410,-1355.4,0.00014557,2]
[333713612,1722397839420,-1361.02,0.00014557,2]
[333713613,1722397839430,-1789.79117795,0.00014557,2]
[333713614,1722397839441,-184.0525764,0.00014558,2]
[333713615,1722397839452,-161.18810209,0.00014558,2]
[333713616,1722397839463,-276.26687872,0.00014558,2]
[333713617,1722397839472,-500.0,0.00014558,2]
[333713618,1722397839481,-500.0,0.00014558,2]
[333713619,1722397839492,-500.0,0.00014558,2]
[333713620,1722397839503,-383.07239707,0.00014558,2]
[333713621,1722397839513,-512.54493548,0.00014558,2]
[333713622,1722397839523,-500.0,0.00014558,2]
[333713623,1722397839531,-500.0,0.00014558,2]
[333713624,1722397839540,-500.0,0.00014558,2]
[333713625,1722397839549,-314.17388446,0.00014558,2]
[333713626,1722397839558,-513.20419665,0.00014558,2]
[333713627,1722397839567,-500.0,0.00014559,2]
[333713628,1722397839584,-501.9122577,0.00014559,2]
[333713629,1722397839594,-500.0,0.00014559,2]
[333713630,1722397839604,-551.44747579,0.00014559,2]
[333713631,1722397839613,-508.32190725,0.00014559,2]
[333713632,1722397839623,-500.0,0.00014559,2]
[333713633,1722397839632,-504.05901394,0.00014559,2]
[333713634,1722397839641,-795.97,0.00014559,2]